bitfinex/quotes_SOLUSD_20230116
["timestamp","ask_amount","ask_price","bid_price","bid_amount"]
[1673883589278,20.0,23.088,23.062,21.46196354]
[1673883589487,20.0,23.088,23.063,41.46196354]
[1673883589718,32.51,23.089,23.063,41.46196354]
[1673883589931,20.0,23.092,23.063,41.46196354]
[1673883589932,32.5,23.092,23.063,41.46196354]
[1673883590124,114.8904,23.093,23.063,41.46196354]
[1673883590327,114.8904,23.093,23.064,17.0]
[1673883590755,20.0,23.092,23.065,41.46196354]
[1673883590964,20.0,23.092,23.066,20.0]
[1673883591189,20.0,23.092,23.066,41.46196354]
[1673883591190,52.5,23.092,23.066,41.46196354]
[1673883591376,52.5,23.092,23.067,21.46196354]
[1673883591595,20.0,23.09,23.067,21.46196354]
[1673883592661,32.5,23.092,23.069,20.0]
[1673883592871,114.8904,23.093,23.07,17.0]
[1673883593078,114.8904,23.093,23.071,20.0]
[1673883593303,114.8904,23.093,23.072,17.0]
[1673883593495,114.8904,23.093,23.072,38.46196354]
[1673883593707,20.0,23.092,23.073,21.46196354]
[1673883593920,20.0,23.092,23.074,17.0]
[1673883594145,32.5,23.097,23.074,17.0]
[1673883594334,146.5765,23.1,23.075,21.46196354]
[1673883594544,146.5765,23.1,23.074,17.0]
[1673883594545,20.0,23.099,23.074,17.0]
[1673883594878,20.0,23.099,23.072,38.46196354]
[1673883595092,32.5,23.098,23.075,21.46196354]
[1673883595274,20.0,23.097,23.069,20.0]
[1673883595613,37.0,23.097,23.071,20.0]
[1673883595806,32.5,23.096,23.071,20.0]
[1673883596016,32.5,23.097,23.073,20.0]
[1673883596239,146.5765,23.1,23.072,21.46196354]
[1673883596448,32.5,23.096,23.073,17.0]
[1673883596771,20.0,23.098,23.069,20.0]
[1673883596976,32.5,23.095,23.07,17.0]
[1673883597189,32.5,23.097,23.07,17.0]
[1673883597407,37.0,23.096,23.058,20.0]
[1673883597591,42.92392708,23.094,23.058,20.0]
[1673883597800,57.0,23.093,23.058,20.0]
[1673883598029,89.5,23.093,23.06,21.46196354]
[1673883599060,110.96196354,23.093,23.058,20.0]
[1673883599398,110.96196354,23.093,23.058,41.46196354]
[1673883599607,110.96196354,23.093,23.059,41.46196354]
[1673883600849,89.5,23.093,23.06,17.0]
[1673883601263,89.5,23.093,23.06,38.46196354]
[1673883601496,20.0,23.091,23.06,17.0]
[1673883601706,17.0,23.09,23.06,38.46196354]
[1673883601895,49.51,23.09,23.061,20.0]
[1673883602109,20.0,23.089,23.062,17.0]
[1673883602331,17.0,23.088,23.062,17.0]
[1673883602546,20.0,23.087,23.062,17.0]
[1673883602753,32.51,23.088,23.063,21.46196354]
[1673883602958,32.51,23.088,23.064,17.0]
[1673883603372,17.0,23.087,23.062,17.0]
[1673883603585,32.51,23.088,23.063,20.0]
[1673883603803,20.0,23.087,23.064,17.0]
[1673883604419,32.51,23.086,23.064,17.0]
[1673883604629,20.0,23.085,23.062,17.0]
[1673883605072,32.52,23.084,23.058,21.46196354]
[1673883605481,32.52,23.084,23.059,20.0]
[1673883605690,32.51,23.086,23.059,20.0]
[1673883605904,17.0,23.085,23.049,103.63793936]
[1673883606105,17.0,23.085,23.053,41.46196354]
[1673883606321,73.98196354,23.084,23.041,0.0022491]
[1673883606530,16.0,23.083,23.041,0.0022491]
[1673883606832,20.0,23.082,23.041,21.46421264]
[1673883607055,20.0,23.081,23.042,20.0]
[1673883607259,20.0,23.08,23.042,20.0]
[1673883607480,20.0,23.079,23.042,20.0]
[1673883607688,53.98196354,23.08,23.042,20.0]
[1673883607907,36.0,23.083,23.043,21.46196354]
[1673883607908,32.52,23.078,23.043,21.46196354]
[1673883608089,32.52,23.079,23.043,21.46196354]
[1673883608305,82.53006184,23.083,23.042,20.0]
[1673883608306,32.53,23.077,23.042,20.0]
[1673883608516,20.0,23.075,23.042,20.0]
[1673883608835,116.6172,23.074,23.043,21.46196354]
[1673883609050,17.0,23.073,23.044,20.0]
[1673883609371,17.0,23.073,23.045,21.46196354]
[1673883609589,32.53,23.072,23.045,42.92392708]
[1673883609776,116.6172,23.074,23.045,21.46196354]
[1673883609988,116.6172,23.074,23.046,17.0]
[1673883610343,116.6172,23.074,23.047,20.0]
[1673883610520,116.6172,23.074,23.047,41.46196354]
[1673883610719,116.6172,23.074,23.048,21.46196354]
[1673883611155,32.53,23.073,23.048,21.46196354]
[1673883611376,17.0,23.072,23.048,21.46196354]
[1673883611556,17.0,23.072,23.047,20.0]
[1673883611557,17.0,23.072,23.044,20.0]
[1673883611772,32.53,23.071,23.044,20.0]
[1673883611979,17.0,23.07,23.044,20.0]
[1673883612203,32.53,23.071,23.045,21.46196354]
[1673883612523,32.53,23.071,23.046,20.0]
[1673883612735,32.53,23.073,23.046,20.0]
[1673883612940,32.53,23.073,23.047,38.46196354]
[1673883613149,32.53,23.073,23.048,20.0]
[1673883613353,20.0,23.072,23.049,17.0]
[1673883613686,20.0,23.072,23.049,21.46196354]
[1673883613896,20.0,23.07,23.036,20.0]
[1673883614106,17.0,23.069,23.042,21.46196354]
[1673883614334,49.54,23.069,23.042,21.46196354]
[1673883614512,20.0,23.068,23.043,20.0]
[1673883614718,17.0,23.067,23.043,20.0]
[1673883614942,20.0,23.066,23.044,21.46196354]
[1673883615151,20.0,23.066,23.037,116.94684389]
[1673883615152,17.0,23.065,23.037,116.94684389]
[1673883615359,20.0,23.064,23.037,116.94684389]
[1673883615564,17.0,23.063,23.043,20.0]
[1673883616086,17.0,23.063,23.037,116.94684389]
[1673883616297,20.0,23.061,23.042,21.46196354]
[1673883616525,17.0,23.06,23.037,116.94684389]
[1673883616739,20.0,23.059,23.039,21.46196354]
[1673883616953,17.0,23.058,23.039,21.46196354]
[1673883617150,49.55,23.058,23.039,21.46196354]
[1673883617367,20.0,23.057,23.037,116.94684389]
[1673883617561,17.0,23.056,23.037,116.94684389]
[1673883617774,49.55,23.056,23.037,116.94684389]
[1673883618423,32.55,23.056,23.037,138.40880743]
[1673883618631,0.06,23.039,23.03,52.23651791]
[1673883618946,21.46196354,23.038,23.026,13.89644821]
[1673883619135,20.0,23.037,23.025,0.00040384]
[1673883619354,20.0,23.035,23.025,0.00040384]
[1673883619763,32.59,23.034,23.025,0.00040384]
[1673883619977,110.76577491,23.035,23.025,0.00040384]
[1673883620206,17.0,23.034,23.025,0.00040384]
[1673883620520,78.18577491,23.035,23.025,0.00040384]
[1673883620740,20.0,23.035,23.025,0.00040384]
[1673883621053,32.58,23.036,23.025,0.00040384]
[1673883621243,32.58,23.038,23.025,0.00040384]
[1673883621452,0.06,23.039,23.025,0.00040384]
[1673883621453,0.06,23.039,23.025,21.46236738]
[1673883621789,0.06,23.039,23.026,41.46196354]
[1673883621975,0.06,23.039,23.026,58.46196354]
[1673883622185,0.06,23.039,23.026,20.0]
[1673883622828,0.06,23.039,23.025,21.46236738]
[1673883623034,0.06,23.039,23.025,0.00040384]
[1673883623875,0.06,23.039,23.025,21.46236738]
[1673883624286,0.06,23.039,23.026,17.0]
[1673883624496,22.13290012,23.036,23.025,0.00040384]
[1673883624717,20.0,23.035,23.025,0.00040384]
[1673883625126,22.13290012,23.036,23.025,0.00040384]
[1673883625574,22.13290012,23.037,23.025,21.46236738]
[1673883625885,22.13290012,23.036,23.025,0.00040384]
[1673883626092,20.0,23.035,23.025,0.00040384]
[1673883626310,22.13290012,23.036,23.025,0.00040384]
[1673883626523,22.13290012,23.035,23.025,21.46236738]
[1673883626708,22.13290012,23.038,23.025,21.46236738]
[1673883626914,22.13290012,23.036,23.025,21.46236738]
[1673883627140,22.13290012,23.036,23.025,0.00040384]
[1673883627344,20.0,23.035,23.025,0.00040384]
[1673883627985,22.13290012,23.034,23.025,0.00040384]
[1673883628190,20.0,23.033,23.025,0.00040384]
[1673883628395,20.0,23.035,23.025,0.00040384]
[1673883628627,42.13290012,23.035,23.025,0.00040384]
[1673883629144,22.13290012,23.035,23.025,0.00040384]
[1673883629763,22.13290012,23.038,23.026,21.46196354]
[1673883630180,20.0,23.034,23.025,0.00040384]
[1673883630505,42.13290012,23.034,23.025,0.00040384]
[1673883630724,22.13290012,23.034,23.015,20.0]
[1673883630920,22.13290012,23.034,23.019,20.0]
[1673883631117,22.13290012,23.034,23.021,20.0]
[1673883631338,22.13290012,23.036,23.022,17.0]
[1673883631672,22.13290012,23.037,23.022,38.46196354]
[1673883631983,22.13290012,23.037,23.016,0.98496652]
[1673883632192,22.13290012,23.034,23.017,21.46196354]
[1673883632503,22.13290012,23.031,23.017,21.46196354]
[1673883632722,22.13290012,23.028,23.017,21.46196354]
[1673883633326,22.13290012,23.029,23.017,21.46196354]
[1673883633653,22.13290012,23.027,23.016,0.98496652]
[1673883633878,22.13290012,23.025,23.016,0.98496652]
[1673883634820,22.13290012,23.024,23.016,0.98496652]
[1673883635248,22.13290012,23.025,23.016,0.98496652]
[1673883635443,22.13290012,23.026,23.016,0.98496652]
[1673883635870,22.13290012,23.024,23.016,0.98496652]
[1673883636196,22.13290012,23.026,23.016,0.98496652]
[1673883636394,22.13290012,23.028,23.017,21.46196354]
[1673883636723,22.13290012,23.027,23.017,21.46196354]
[1673883636928,22.13290012,23.027,23.018,17.0]
[1673883637331,22.13290012,23.031,23.019,21.46196354]
[1673883637553,22.13290012,23.033,23.019,21.46196354]
[1673883637764,22.13290012,23.024,23.016,0.98496652]
[1673883637981,22.13290012,23.022,23.016,0.98496652]
[1673883638290,0.00802696,23.009,23.006,79.30524673]
[1673883638508,22.13290012,23.029,23.007,20.0]
[1673883638821,22.13290012,23.03,23.006,94.79372151]
[1673883639216,22.13290012,23.028,23.007,20.0]
[1673883639430,22.19290012,23.039,23.007,41.46196354]
[1673883639755,0.06,23.039,23.008,143.67126985]
[1673883639964,0.06,23.039,23.009,130.5]
[1673883640288,0.06,23.039,23.011,20.0]
[1673883640495,0.06,23.039,23.012,17.0]
[1673883640698,0.06,23.039,23.013,20.0]
[1673883641031,0.06,23.039,23.015,73.48880805]
[1673883641239,0.06,23.039,23.016,130.2663324]
[1673883641448,0.06,23.039,23.017,17.0]
[1673883641660,0.06,23.039,23.019,20.0]
[1673883641973,0.06,23.039,23.02,17.0]
[1673883642184,0.06,23.039,23.021,20.0]
[1673883642392,0.06,23.039,23.022,17.0]
[1673883642704,0.06,23.039,23.023,20.0]
[1673883642899,0.06,23.039,23.023,41.46196354]
[1673883643102,0.06,23.039,23.024,21.46196354]
[1673883643313,0.06,23.039,23.025,20.0]
[1673883643860,0.06,23.039,23.026,21.46196354]
[1673883644062,0.06,23.039,23.027,20.0]
[1673883644477,0.06,23.039,23.028,21.46196354]
[1673883645225,0.06,23.039,23.025,20.0]
[1673883645423,0.06,23.039,23.019,20.0]
[1673883645645,0.06,23.039,23.02,21.46196354]
[1673883645961,0.06,23.039,23.026,21.46196354]
[1673883646153,0.06,23.039,23.027,20.0]
[1673883646573,0.06,23.039,23.028,38.46196354]
[1673883646784,0.06,23.039,23.029,20.0]
[1673883647010,0.06,23.039,23.029,41.46196354]
[1673883647207,0.06,23.039,23.03,21.46196354]
[1673883648078,0.06,23.039,23.031,17.0]
[1673883648500,0.06,23.039,23.032,21.46196354]
[1673883648740,0.06,23.039,23.031,5.19728503]
[1673883648938,0.06,23.039,23.03,21.46196354]
[1673883649348,0.06,23.039,23.022,20.0]
[1673883649552,0.06,23.039,23.023,42.92392708]
[1673883649880,0.06,23.039,23.023,21.46196354]
[1673883651039,0.06,23.039,23.024,20.0]
[1673883651357,0.06,23.039,23.025,21.46196354]
[1673883651883,0.06,23.039,23.026,17.0]
[1673883652101,0.06,23.039,23.027,20.0]
[1673883652414,0.06,23.039,23.027,21.46196354]
[1673883652726,0.06,23.039,23.023,21.46196354]
[1673883653672,0.06,23.039,23.013,25.77966822]
[1673883653876,0.06,23.039,23.019,38.46196354]
[1673883654070,0.06,23.039,23.02,20.0]
[1673883654281,0.06,23.039,23.021,17.0]
[1673883654492,0.06,23.039,23.021,38.46196354]
[1673883654697,0.06,23.039,23.022,21.46196354]
[1673883654910,0.06,23.039,23.024,20.0]
[1673883655140,0.06,23.039,23.024,24.62882388]
[1673883655370,0.06,23.039,23.025,38.46196354]
[1673883655786,40.23821375,23.045,23.026,21.46196354]
[1673883655997,40.23821375,23.045,23.028,20.0]
[1673883656211,22.13290012,23.061,23.028,20.0]
[1673883656423,22.13290012,23.067,23.029,43.71057757]
[1673883656750,22.13290012,23.068,23.03,26.44007408]
[1673883657053,20.0,23.067,23.033,4.55937456]
[1673883657450,20.0,23.067,23.034,21.46196354]
[1673883657786,22.13290012,23.065,23.034,21.46196354]
[1673883658101,20.0,23.064,23.034,21.46196354]
[1673883658307,52.54,23.064,23.034,21.46196354]
[1673883658843,52.54,23.064,23.036,20.0]
[1673883659023,52.54,23.064,23.037,17.0]
[1673883659239,52.54,23.064,23.037,38.46196354]
[1673883659443,52.54,23.064,23.038,21.46196354]
[1673883659664,32.54,23.064,23.039,17.0]
[1673883659870,54.67290012,23.066,23.04,20.0]
[1673883660187,54.66290012,23.073,23.041,24.87857429]
[1673883660396,22.13290012,23.073,23.042,5.90654787]
[1673883660600,20.0,23.079,23.044,20.0]
[1673883660812,22.13290012,23.076,23.045,17.0]
[1673883661041,22.13290012,23.076,23.045,38.46196354]
[1673883661251,22.13290012,23.071,23.045,38.46196354]
[1673883661444,32.53,23.077,23.046,21.46196354]
[1673883661651,22.13290012,23.078,23.047,22.65009585]
[1673883661877,20.0,23.077,23.048,20.0]
[1673883662085,22.13290012,23.08,23.049,17.0]
[1673883662295,54.65290012,23.08,23.049,38.46196354]
[1673883662504,22.13290012,23.08,23.05,28.47552135]
[1673883662725,22.13290012,23.08,23.051,21.50621873]
[1673883662916,20.0,23.079,23.052,20.0]
[1673883663126,52.52,23.079,23.052,41.46196354]
[1673883663332,32.52,23.083,23.053,21.46196354]
[1673883663767,20.0,23.082,23.053,21.46196354]
[1673883664183,32.52,23.081,23.054,17.0]
[1673883664400,32.52,23.082,23.055,20.0]
[1673883664610,32.52,23.084,23.056,17.0]
[1673883664928,32.52,23.084,23.056,38.46196354]
[1673883664929,20.0,23.08,23.056,38.46196354]
[1673883665122,20.0,23.08,23.057,21.46196354]
[1673883665337,32.52,23.079,23.042,20.0]
[1673883665539,32.52,23.079,23.042,98.89759705]
[1673883665874,32.52,23.079,23.053,21.46196354]
[1673883666497,32.52,23.084,23.053,21.46196354]
[1673883666727,54.65290012,23.084,23.053,21.46196354]
[1673883666939,20.0,23.083,23.054,17.0]
[1673883667265,20.0,23.083,23.055,21.46196354]
[1673883667454,32.52,23.082,23.056,17.0]
[1673883667888,20.0,23.081,23.057,21.46196354]
[1673883668079,37.0,23.081,23.057,21.46196354]
[1673883668294,32.52,23.08,23.058,17.0]
[1673883668519,20.0,23.078,23.058,17.0]
[1673883668718,20.0,23.078,23.058,21.46196354]
[1673883668923,20.0,23.076,23.046,20.0]
[1673883669133,17.0,23.075,23.046,41.46196354]
[1673883669350,165.7931,23.075,23.045,20.0]
[1673883669556,165.7931,23.075,23.04,20.0]
[1673883669557,20.0,23.073,23.04,20.0]
[1673883669892,20.0,23.073,23.036,20.0]
[1673883669893,17.0,23.072,23.037,21.46196354]
[1673883670089,20.0,23.071,23.037,21.46196354]
[1673883670300,17.0,23.07,23.037,21.46196354]
[1673883670508,49.54,23.07,23.038,17.0]
[1673883670719,71.00196354,23.07,23.033,21.46196354]
[1673883671042,20.0,23.069,23.039,21.46196354]
[1673883671362,17.0,23.068,23.039,21.46196354]
[1673883671574,49.54,23.068,23.039,21.46196354]
[1673883671772,20.0,23.067,23.039,21.46196354]
[1673883671980,17.0,23.066,23.03,20.0]
[1673883672310,49.54,23.066,23.031,21.46196354]
[1673883672518,20.0,23.065,23.032,20.0]
[1673883672714,49.54,23.066,23.032,20.0]
[1673883672715,17.0,23.064,23.032,20.0]
[1673883672918,49.54,23.066,23.033,38.46196354]
[1673883673150,32.54,23.063,23.033,38.46196354]
[1673883673457,17.0,23.066,23.033,38.46196354]
[1673883673458,226.9997,23.062,23.034,21.46196354]
[1673883673671,20.0,23.061,23.035,37.0]
[1673883673880,226.9997,23.062,23.035,37.0]
[1673883674073,226.9997,23.062,23.036,21.46196354]
[1673883674284,226.9997,23.062,23.037,17.0]
[1673883674496,226.9997,23.062,23.038,20.0]
[1673883674707,226.9997,23.062,23.039,17.0]
[1673883674918,32.54,23.068,23.04,20.0]
[1673883675128,116.2631,23.075,23.041,17.0]
[1673883675129,108.8684,23.07,23.041,17.0]
[1673883675342,108.8684,23.07,23.042,20.0]
[1673883675673,20.0,23.069,23.043,17.0]
[1673883675869,52.54,23.069,23.043,38.46196354]
[1673883676080,52.54,23.069,23.044,41.46196354]
[1673883676297,32.54,23.069,23.045,17.0]
[1673883676509,32.54,23.069,23.045,38.46196354]
[1673883676702,108.8684,23.07,23.046,41.46196354]
[1673883676916,108.8684,23.07,23.047,17.0]
[1673883677253,108.8684,23.07,23.048,20.0]
[1673883677435,116.2631,23.075,23.048,41.46196354]
[1673883677653,116.2631,23.075,23.05,20.0]
[1673883678080,116.2631,23.075,23.051,21.46196354]
[1673883678606,20.0,23.074,23.051,21.46196354]
[1673883678815,32.53,23.074,23.051,21.46196354]
[1673883679452,32.53,23.074,23.052,17.0]
[1673883679659,32.53,23.074,23.053,20.0]
[1673883679870,32.53,23.074,23.054,17.0]
[1673883680093,32.53,23.074,23.054,38.46196354]
[1673883680300,32.53,23.074,23.055,21.46196354]
[1673883680499,32.53,23.074,23.056,17.0]
[1673883680711,20.0,23.073,23.056,17.0]
[1673883680926,50.23912339,23.054,23.041,20.0]
[1673883681136,50.23912339,23.054,23.047,21.46196354]
[1673883682524,50.23912339,23.054,23.041,20.0]
[1673883682720,50.23912339,23.054,23.042,21.46196354]
[1673883683543,50.23912339,23.054,23.038,20.0]
[1673883683758,50.23912339,23.054,23.033,20.0]
[1673883683964,20.0,23.053,23.031,20.0]
[1673883684177,50.23912339,23.054,23.034,21.46196354]
[1673883684502,0.98930323,23.053,23.034,21.46196354]
[1673883684709,0.98930323,23.053,23.035,20.0]
[1673883684918,0.98930323,23.053,23.036,17.0]
[1673883685124,0.98930323,23.053,23.036,38.46196354]
[1673883685339,0.98930323,23.053,23.037,27.09005622]
[1673883685544,0.98930323,23.053,23.039,20.0]
[1673883685770,0.98930323,23.053,23.04,7.1665105]
[1673883685983,0.98930323,23.053,23.042,20.0]
[1673883686488,0.98930323,23.053,23.043,38.46196354]
[1673883686699,0.98930323,23.053,23.044,20.0]
[1673883686901,0.98930323,23.053,23.046,20.0]
[1673883687116,0.98930323,23.053,23.047,17.0]
[1673883687354,0.98930323,23.053,23.047,38.46196354]
[1673883687663,0.98930323,23.053,23.048,41.46196354]
[1673883687979,0.98930323,23.053,23.049,38.46196354]
[1673883688591,22.13290012,23.074,23.058,51.13363739]
[1673883688820,116.0148,23.083,23.059,17.0]
[1673883689143,116.0148,23.083,23.06,20.0]
[1673883689144,20.0,23.082,23.06,20.0]
[1673883689355,52.52,23.082,23.061,17.0]
[1673883689566,32.52,23.082,23.062,20.0]
[1673883689773,116.0148,23.083,23.063,17.0]
[1673883690093,113.9584,23.088,23.063,17.0]
[1673883690285,113.9584,23.088,23.065,20.0]
[1673883690504,113.9584,23.088,23.067,20.0]
[1673883690932,113.9584,23.088,23.068,38.46196354]
[1673883691139,113.9584,23.088,23.069,20.0]
[1673883691334,113.9584,23.088,23.07,17.0]
[1673883691544,113.9584,23.088,23.07,38.46196354]
[1673883691755,113.9584,23.088,23.071,21.46196354]
[1673883691967,113.9584,23.088,23.072,17.0]
[1673883692175,20.0,23.086,23.072,17.0]
[1673883692393,113.9584,23.088,23.073,21.46196354]
[1673883692608,20.0,23.087,23.074,17.0]
[1673883693023,20.0,23.087,23.075,21.46196354]
[1673883693560,20.0,23.087,23.059,20.0]
[1673883693752,32.51,23.086,23.069,21.46196354]
[1673883693963,20.0,23.085,23.069,21.46196354]
[1673883694278,20.0,23.085,23.066,21.46196354]
[1673883694483,32.52,23.084,23.066,21.46196354]
[1673883694707,32.51,23.086,23.066,21.46196354]
[1673883694919,32.51,23.087,23.066,21.46196354]
[1673883695116,113.9584,23.088,23.066,21.46196354]
[1673883695331,113.9584,23.088,23.067,17.0]
[1673883695539,20.0,23.087,23.067,17.0]
[1673883695749,113.9584,23.088,23.068,21.46196354]
[1673883695956,113.9584,23.088,23.069,17.0]
[1673883696387,113.9584,23.088,23.07,21.46196354]
[1673883696597,20.0,23.087,23.071,17.0]
[1673883697008,20.0,23.087,23.072,21.46196354]
[1673883697220,113.9584,23.088,23.073,17.0]
[1673883697541,113.9584,23.088,23.074,21.46196354]
[1673883697750,146.4684,23.088,23.075,17.0]
[1673883697960,32.51,23.089,23.075,17.0]
[1673883698165,149.1942,23.096,23.076,21.46196354]
[1673883698381,149.1942,23.096,23.077,17.0]
[1673883698820,116.6942,23.096,23.078,21.46196354]
[1673883699029,116.6942,23.096,23.079,17.0]
[1673883699236,20.0,23.1,23.079,17.0]
[1673883699237,32.49,23.1,23.079,17.0]
[1673883699433,20.0,23.1,23.08,21.46196354]
[1673883699648,32.49,23.099,23.081,17.0]
[1673883700079,32.49,23.099,23.082,21.46196354]
[1673883700397,32.49,23.1,23.084,20.0]
[1673883700612,43.09,23.102,23.085,17.0]
[1673883700804,43.09,23.102,23.085,38.46196354]
[1673883701016,43.09,23.102,23.086,21.46196354]
[1673883701232,43.09,23.102,23.087,17.0]
[1673883701448,43.09,23.105,23.087,17.0]
[1673883701648,43.09,23.105,23.088,21.46196354]
[1673883701982,43.09,23.105,23.089,21.55827767]
[1673883702297,43.09,23.105,23.09,21.46196354]
[1673883702486,20.0,23.124,23.091,37.0]
[1673883702692,20.0,23.122,23.093,20.0]
[1673883702927,20.0,23.122,23.094,17.0]
[1673883703146,32.46,23.121,23.094,70.92266972]
[1673883703446,32.46,23.121,23.096,20.0]
[1673883703674,32.46,23.121,23.097,17.0]
[1673883703974,32.46,23.123,23.098,20.0]
[1673883704166,32.46,23.12,23.099,17.0]
[1673883704376,32.46,23.122,23.1,20.0]
[1673883704587,32.46,23.125,23.101,17.0]
[1673883704907,32.46,23.125,23.101,45.26451991]
[1673883705120,32.45,23.13,23.102,21.46196354]
[1673883705336,32.44,23.135,23.103,43.76661761]
[1673883705545,32.45,23.129,23.103,37.0]
[1673883705743,142.1854,23.134,23.103,37.0]
[1673883706075,32.45,23.128,23.103,37.0]
[1673883706287,32.45,23.133,23.103,37.0]
[1673883706488,32.45,23.127,23.104,41.46196354]
[1673883706698,52.45,23.132,23.104,20.0]
[1673883707018,20.0,23.125,23.104,20.0]
[1673883707220,20.0,23.125,23.104,41.46196354]
[1673883707432,32.46,23.124,23.104,41.46196354]
[1673883707629,32.46,23.124,23.105,21.46196354]
[1673883707965,32.46,23.124,23.1,23.73]
[1673883708173,32.46,23.124,23.105,21.46196354]
[1673883708492,20.0,23.123,23.105,21.46196354]
[1673883708705,20.0,23.123,23.098,20.0]
[1673883709038,32.47,23.114,23.098,20.0]
[1673883709418,32.46,23.124,23.098,20.0]
[1673883709649,32.46,23.124,23.099,21.46196354]
[1673883709837,116.9165,23.123,23.099,21.46196354]
[1673883710048,20.0,23.122,23.099,21.46196354]
[1673883710274,32.46,23.122,23.101,20.0]
[1673883710497,32.46,23.122,23.102,17.0]
[1673883710690,32.46,23.122,23.103,20.0]
[1673883710907,32.46,23.122,23.104,17.0]
[1673883711318,32.46,23.122,23.105,20.0]
[1673883711532,32.46,23.122,23.106,17.0]
[1673883712183,32.46,23.126,23.107,21.46196354]
[1673883712369,20.0,23.125,23.1,23.73]
[1673883712581,52.46,23.125,23.09,23.81]
[1673883712789,32.47,23.114,23.09,45.27196354]
[1673883712996,32.47,23.114,23.098,41.46196354]
[1673883713207,20.0,23.123,23.101,20.0]
[1673883713636,32.46,23.122,23.102,42.92392708]
[1673883713846,32.46,23.122,23.103,17.0]
[1673883714279,32.46,23.124,23.105,20.0]
[1673883714491,118.2997,23.131,23.107,20.0]
[1673883714492,32.46,23.126,23.107,20.0]
[1673883714698,32.45,23.13,23.107,26.29872919]
[1673883714908,32.45,23.134,23.12,22.78313539]
[1673883715118,32.44,23.138,23.11,23.76]
[1673883715334,20.0,23.132,23.111,17.0]
[1673883715741,32.45,23.131,23.111,17.0]
[1673883716075,32.45,23.131,23.112,20.0]
[1673883716284,32.45,23.131,23.113,17.0]
[1673883717535,32.44,23.138,23.113,17.0]
[1673883718158,20.0,23.137,23.113,17.0]
[1673883718370,20.0,23.137,23.113,38.46196354]
[1673883718577,32.44,23.136,23.113,38.46196354]
[1673883718990,32.44,23.136,23.114,20.0]
[1673883719207,32.44,23.136,23.12,23.78]
[1673883719427,32.44,23.139,23.121,17.0]
[1673883719626,32.44,23.135,23.121,17.0]
[1673883719837,32.44,23.138,23.121,17.0]
[1673883720042,32.44,23.139,23.121,17.0]
[1673883720902,20.0,23.138,23.12,23.78]
[1673883721222,20.0,23.136,23.111,21.46196354]
[1673883721410,20.0,23.136,23.101,20.0]
[1673883721411,17.0,23.135,23.101,20.0]
[1673883721748,143.5814,23.135,23.111,42.92392708]
[1673883721936,143.5814,23.135,23.11,23.58]
[1673883722142,20.0,23.133,23.111,21.46196354]
[1673883722460,38.46196354,23.132,23.101,20.0]
[1673883722672,20.0,23.131,23.103,21.46196354]
[1673883723147,32.45,23.13,23.11,23.74]
[1673883723543,32.45,23.132,23.11,45.20196354]
[1673883723758,20.0,23.128,23.11,23.74]